[Event "Titled Tuesday Blitz July 18 Early 2023"]
[White "JonSnowNW1"]
[Black "Golubev, Mikhail"]
[BlackFideId "14100983"]
[WhiteElo "2455"]
[BlackElo "2600"]
[Result "0-1"]
[Round "5"]
[TimeControl "180+2"]
[Date "2023.07.18"]
[WhiteClock "0:00:02"]
[BlackClock "0:00:06"]
[Board "92"]

1. c4 {[%clk 0:03:00]}  g6 {[%clk 0:02:59]} 2. Nc3 {[%clk 0:03:00]}  Bg7 {[%clk 0:02:59]} 3. g3 {[%clk 0:02:58]}  e5 {[%clk 0:02:58]} 4. Bg2 {[%clk 0:02:58]}  Nc6 {[%clk 0:02:58]} 5. Nf3 {[%clk 0:02:53]}  d6 {[%clk 0:02:55]} 6. O-O {[%clk 0:02:51]}  f5 {[%clk 0:02:55]} 7. d3 {[%clk 0:02:50]}  h6 {[%clk 0:02:53]} 8. Rb1 {[%clk 0:02:50]}  a5 {[%clk 0:02:52]} 9. a3 {[%clk 0:02:50]}  g5 {[%clk 0:02:52]} 10. Nd5 {[%clk 0:02:45]}  Nge7 {[%clk 0:02:34]} 11. Nd2 {[%clk 0:02:00]}  Nxd5 {[%clk 0:02:28]} 12. cxd5 {[%clk 0:02:00]}  Ne7 {[%clk 0:02:28]} 13. e3 {[%clk 0:01:49]}  O-O {[%clk 0:02:25]} 14. f4 {[%clk 0:01:49]}  Ng6 {[%clk 0:02:16]} 15. Qh5 {[%clk 0:01:40]}  Qf6 {[%clk 0:01:29]} 16. fxg5 {[%clk 0:01:30]}  Qxg5 {[%clk 0:01:26]} 17. Qe2 {[%clk 0:01:28]}  Bd7 {[%clk 0:01:20]} 18. b3 {[%clk 0:01:12]}  a4 {[%clk 0:01:06]} 19. b4 {[%clk 0:01:11]}  Bb5 {[%clk 0:01:02]} 20. Nc4 {[%clk 0:01:00]}  e4 {[%clk 0:01:01]} 21. d4 {[%clk 0:00:36]}  Ne7 {[%clk 0:00:50]} 22. Qa2 {[%clk 0:00:35]}  Kh8 {[%clk 0:00:49]} 23. Rf2 {[%clk 0:00:34]}  Nxd5 {[%clk 0:00:48]} 24. Nxd6 {[%clk 0:00:33]}  Nc3 {[%clk 0:00:44]} 25. Nf7+ {[%clk 0:00:30]}  Rxf7 {[%clk 0:00:41]} 26. Qxf7 {[%clk 0:00:31]}  Rf8 {[%clk 0:00:38]} 27. Qxc7 {[%clk 0:00:14]}  Nxb1 {[%clk 0:00:36]} 28. Qc5 {[%clk 0:00:14]}  Bd3 {[%clk 0:00:34]} 29. d5 {[%clk 0:00:10]}  Qg4 {[%clk 0:00:31]} 30. Bf1 {[%clk 0:00:04]}  Qd1 {[%clk 0:00:28]} 31. Bb2 {[%clk 0:00:04]}  Kg8 {[%clk 0:00:20]} 32. Bxg7 {[%clk 0:00:04]}  Kxg7 {[%clk 0:00:20]} 33. Qe7+ {[%clk 0:00:04]}  Rf7 {[%clk 0:00:19]} 34. Qe5+ {[%clk 0:00:04]}  Kh7 {[%clk 0:00:16]} 35. Qe6 {[%clk 0:00:04]}  Qh5 {[%clk 0:00:15]} 36. Bh3 {[%clk 0:00:02]}  Qd1+ {[%clk 0:00:11]} 37. Kg2 {[%clk 0:00:02]}  Kg7 {[%clk 0:00:11]} 38. Bxf5 {[%clk 0:00:02]}  Nd2 {[%clk 0:00:08]} 39. Qg6+ {[%clk 0:00:02]}  Kf8 {[%clk 0:00:07]} 40. Qxh6+ {[%clk 0:00:02]}  Ke7 {[%clk 0:00:06]} 41. Qe6+ {[%clk 0:00:02]}  Kf8 {[%clk 0:00:06]} 42. Qd6+ {[%clk 0:00:01]}  Kg7 {[%clk 0:00:04]} 43. Qh6+ {[%clk 0:00:02]}  Kxh6 {[%clk 0:00:04]} 44. Bg6 {[%clk 0:00:02]}  Bf1+ {[%clk 0:00:02]} 45. Kg1 {[%clk 0:00:03]}  Nf3+ {[%clk 0:00:02]} 46. Rxf3 {[%clk 0:00:02]}  Bh3+ {[%clk 0:00:03]} 47. Kf2 {[%clk 0:00:02]}  Qxf3+ {[%clk 0:00:04]} 48. Ke1 {[%clk 0:00:01]}  Qxe3+ {[%clk 0:00:05]} 49. Kd1 {[%clk 0:00:01]}  Qd3+ {[%clk 0:00:05]} 50. Kc1 {[%clk 0:00:02]}  Qc3+ {[%clk 0:00:06]} 51. Kd1 {[%clk 0:00:02]}  Rf1+ {[%clk 0:00:06]} 52. Ke2 {[%clk 0:00:02]}  Qd3# {[%clk 0:00:06]} 0-1


[Site "https://www.chess.com"]

[Event "Titled Tuesday Blitz July 18 Early 2023"]
[White "Altman, Joshua"]
[Black "Tanmay Jain"]
[WhiteFideId "426210"]
[BlackFideId "45015481"]
[WhiteElo "2598"]
[BlackElo "2450"]
[Result "1-0"]
[Round "5"]
[TimeControl "180+2"]
[Date "2023.07.18"]
[WhiteClock "0:00:04"]
[BlackClock "0:00:00"]
[Board "94"]

1. d4 {[%clk 0:02:37]}  Nf6 {[%clk 0:02:59]} 2. c4 {[%clk 0:02:35]}  e6 {[%clk 0:02:58]} 3. Nf3 {[%clk 0:02:35]}  d5 {[%clk 0:02:58]} 4. Nc3 {[%clk 0:02:36]}  Be7 {[%clk 0:02:58]} 5. cxd5 {[%clk 0:02:36]}  exd5 {[%clk 0:02:57]} 6. Bg5 {[%clk 0:02:36]}  O-O {[%clk 0:02:56]} 7. Qc2 {[%clk 0:02:36]}  c6 {[%clk 0:02:46]} 8. e3 {[%clk 0:02:36]}  Bg4 {[%clk 0:02:45]} 9. Bd3 {[%clk 0:02:36]}  h6 {[%clk 0:02:42]} 10. Bh4 {[%clk 0:02:36]}  Nbd7 {[%clk 0:02:38]} 11. O-O {[%clk 0:02:34]}  Re8 {[%clk 0:02:34]} 12. h3 {[%clk 0:02:25]}  Bxf3 {[%clk 0:02:30]} 13. gxf3 {[%clk 0:02:26]}  Nh5 {[%clk 0:02:30]} 14. Bxe7 {[%clk 0:02:12]}  Qxe7 {[%clk 0:02:30]} 15. Kh2 {[%clk 0:02:12]}  Qd6+ {[%clk 0:02:12]} 16. f4 {[%clk 0:02:12]}  g5 {[%clk 0:02:09]} 17. Rg1 {[%clk 0:02:03]}  Kh8 {[%clk 0:02:09]} 18. Kh1 {[%clk 0:01:26]}  gxf4 {[%clk 0:01:49]} 19. e4 {[%clk 0:01:23]}  Qe6 {[%clk 0:01:40]} 20. Kh2 {[%clk 0:01:23]}  dxe4 {[%clk 0:01:31]} 21. Bxe4 {[%clk 0:01:10]}  f3 {[%clk 0:01:16]} 22. Bxf3 {[%clk 0:01:00]}  Qd6+ {[%clk 0:01:09]} 23. Kh1 {[%clk 0:01:00]}  Nf4 {[%clk 0:00:56]} 24. Qf5 {[%clk 0:00:52]}  Ng6 {[%clk 0:00:47]} 25. Qxf7 {[%clk 0:00:38]}  Ndf8 {[%clk 0:00:14]} 26. Ne4 {[%clk 0:00:34]}  Qe7 {[%clk 0:00:14]} 27. Qf5 {[%clk 0:00:25]}  Qe6 {[%clk 0:00:12]} 28. Qh5 {[%clk 0:00:09]}  Nf4 {[%clk 0:00:12]} 29. Qg4 {[%clk 0:00:09]}  Qxg4 {[%clk 0:00:08]} 30. Rxg4 {[%clk 0:00:10]}  N4g6 {[%clk 0:00:04]} 31. Rag1 {[%clk 0:00:09]}  Re6 {[%clk 0:00:01]} 32. Nc5 {[%clk 0:00:08]}  Rf6 {[%clk 0:00:02]} 33. Be4 {[%clk 0:00:06]}  Kg7 {[%clk 0:00:01]} 34. h4 {[%clk 0:00:05]}  h5 {[%clk 0:00:01]} 35. Rg5 {[%clk 0:00:05]}  Re8 {[%clk 0:00:02]} 36. f3 {[%clk 0:00:05]}  b6 {[%clk 0:00:02]} 37. Nd7 {[%clk 0:00:03]}  Rf7 {[%clk 0:00:01]} 38. Bxg6 {[%clk 0:00:03]}  Nxg6 {[%clk 0:00:02]} 39. Rxg6+ {[%clk 0:00:03]}  Kh7 {[%clk 0:00:00]} 40. Nf6+ {[%clk 0:00:04]} 1-0


[Site "https://www.chess.com"]

[Event "Titled Tuesday Blitz July 18 Early 2023"]
[White "Arnold, Ken"]
[Black "Shishkov, Andrei"]
[WhiteFideId "2056836"]
[BlackFideId "4500563"]
[WhiteElo "2447"]
[BlackElo "2594"]
[Result "1-0"]
[Round "5"]
[TimeControl "180+2"]
[Date "2023.07.18"]
[WhiteClock "0:00:19"]
[BlackClock "0:00:03"]
[Board "95"]

1. e4 {[%clk 0:03:00]}  d5 {[%clk 0:02:59]} 2. Nc3 {[%clk 0:02:59]}  d4 {[%clk 0:02:58]} 3. Nce2 {[%clk 0:02:59]}  e5 {[%clk 0:02:59]} 4. Nf3 {[%clk 0:02:59]}  f6 {[%clk 0:02:47]} 5. d3 {[%clk 0:02:58]}  Be6 {[%clk 0:02:45]} 6. Ng3 {[%clk 0:02:59]}  c5 {[%clk 0:02:44]} 7. Be2 {[%clk 0:02:59]}  Nc6 {[%clk 0:02:44]} 8. O-O {[%clk 0:02:59]}  Qd7 {[%clk 0:02:34]} 9. Nd2 {[%clk 0:02:56]}  O-O-O {[%clk 0:02:29]} 10. b3 {[%clk 0:02:49]}  g6 {[%clk 0:02:23]} 11. Nc4 {[%clk 0:02:49]}  h5 {[%clk 0:02:22]} 12. f4 {[%clk 0:02:41]}  h4 {[%clk 0:02:18]} 13. Nh1 {[%clk 0:02:36]}  h3 {[%clk 0:01:56]} 14. g3 {[%clk 0:02:35]}  b5 {[%clk 0:01:39]} 15. Nb2 {[%clk 0:02:30]}  Bd6 {[%clk 0:01:37]} 16. f5 {[%clk 0:02:26]}  gxf5 {[%clk 0:01:25]} 17. exf5 {[%clk 0:02:24]}  Bd5 {[%clk 0:01:25]} 18. Bf3 {[%clk 0:02:22]}  Nge7 {[%clk 0:01:25]} 19. Bxd5 {[%clk 0:02:13]}  Nxd5 {[%clk 0:01:26]} 20. Qf3 {[%clk 0:02:13]}  Bc7 {[%clk 0:01:16]} 21. a4 {[%clk 0:02:09]}  a6 {[%clk 0:01:13]} 22. axb5 {[%clk 0:02:08]}  axb5 {[%clk 0:01:14]} 23. Nf2 {[%clk 0:02:07]}  Kb7 {[%clk 0:01:04]} 24. Ne4 {[%clk 0:02:07]}  Bb6 {[%clk 0:01:04]} 25. Bd2 {[%clk 0:02:04]}  Ra8 {[%clk 0:01:02]} 26. Rfb1 {[%clk 0:01:26]}  Qe7 {[%clk 0:00:43]} 27. Nd1 {[%clk 0:01:17]}  Kc7 {[%clk 0:00:31]} 28. Ndf2 {[%clk 0:01:16]}  Ne3 {[%clk 0:00:29]} 29. c4 {[%clk 0:00:50]}  b4 {[%clk 0:00:16]} 30. Ng4 {[%clk 0:00:30]}  Nxg4 {[%clk 0:00:15]} 31. Qxg4 {[%clk 0:00:30]}  Kb7 {[%clk 0:00:11]} 32. Qf3 {[%clk 0:00:23]}  Kc7 {[%clk 0:00:10]} 33. Nf2 {[%clk 0:00:21]}  Qd6 {[%clk 0:00:09]} 34. Ne4 {[%clk 0:00:21]}  Qe7 {[%clk 0:00:08]} 35. Kf1 {[%clk 0:00:20]}  Qf8 {[%clk 0:00:07]} 36. Ke2 {[%clk 0:00:20]}  Qe7 {[%clk 0:00:07]} 37. g4 {[%clk 0:00:20]}  Kb7 {[%clk 0:00:07]} 38. g5 {[%clk 0:00:19]}  fxg5 {[%clk 0:00:06]} 39. Bxg5 {[%clk 0:00:19]}  Qf7 {[%clk 0:00:03]} 40. Nd6+ {[%clk 0:00:19]} 1-0


[Site "https://www.chess.com"]

[Event "Titled Tuesday Blitz July 18 Early 2023"]
[White "Parpiev, Isaak"]
[Black "Todorovic, Bojan"]
[WhiteFideId "34281576"]
[BlackFideId "917087"]
[WhiteElo "2586"]
[BlackElo "2426"]
[Result "0-1"]
[Round "5"]
[TimeControl "180+2"]
[Date "2023.07.18"]
[WhiteClock "0:00:00"]
[BlackClock "0:00:09"]
[Board "101"]

1. d4 {[%clk 0:02:54]}  g6 {[%clk 0:02:59]} 2. e4 {[%clk 0:02:11]}  Bg7 {[%clk 0:02:58]} 3. Nc3 {[%clk 0:02:12]}  d6 {[%clk 0:02:58]} 4. f4 {[%clk 0:02:13]}  a6 {[%clk 0:02:58]} 5. a4 {[%clk 0:02:12]}  Nd7 {[%clk 0:02:46]} 6. Nf3 {[%clk 0:02:11]}  e6 {[%clk 0:02:43]} 7. Be2 {[%clk 0:00:14]}  Ne7 {[%clk 0:02:41]} 8. Be3 {[%clk 0:00:14]}  b6 {[%clk 0:02:36]} 9. e5 {[%clk 0:00:14]}  Bb7 {[%clk 0:02:35]} 10. Bf2 {[%clk 0:00:15]}  O-O {[%clk 0:02:30]} 11. Qd2 {[%clk 0:00:15]}  f6 {[%clk 0:02:14]} 12. exd6 {[%clk 0:00:12]}  cxd6 {[%clk 0:02:14]} 13. O-O {[%clk 0:00:12]}  f5 {[%clk 0:02:02]} 14. Rfe1 {[%clk 0:00:12]}  Nf6 {[%clk 0:02:02]} 15. Ng5 {[%clk 0:00:10]}  Qd7 {[%clk 0:01:42]} 16. Bf3 {[%clk 0:00:05]}  Bxf3 {[%clk 0:01:41]} 17. Nxf3 {[%clk 0:00:06]}  d5 {[%clk 0:01:36]} 18. Ne5 {[%clk 0:00:05]}  Qc7 {[%clk 0:01:29]} 19. Bh4 {[%clk 0:00:06]}  Ne4 {[%clk 0:01:28]} 20. Nxe4 {[%clk 0:00:07]}  fxe4 {[%clk 0:01:28]} 21. Bxe7 {[%clk 0:00:08]}  Qxe7 {[%clk 0:01:27]} 22. g3 {[%clk 0:00:06]}  Rac8 {[%clk 0:01:22]} 23. c3 {[%clk 0:00:06]}  g5 {[%clk 0:01:20]} 24. fxg5 {[%clk 0:00:04]}  Rf5 {[%clk 0:01:19]} 25. Ng4 {[%clk 0:00:04]}  Rxg5 {[%clk 0:01:15]} 26. Ne3 {[%clk 0:00:04]}  h5 {[%clk 0:01:11]} 27. Kf2 {[%clk 0:00:02]}  Rf8+ {[%clk 0:01:09]} 28. Ke2 {[%clk 0:00:02]}  h4 {[%clk 0:01:09]} 29. gxh4 {[%clk 0:00:01]}  Rh5 {[%clk 0:00:57]} 30. Kd1 {[%clk 0:00:02]}  Bh6 {[%clk 0:00:55]} 31. Re2 {[%clk 0:00:02]}  Rf1+ {[%clk 0:00:46]} 32. Kc2 {[%clk 0:00:02]}  Rxa1 {[%clk 0:00:45]} 33. Rg2+ {[%clk 0:00:02]}  Kh7 {[%clk 0:00:44]} 34. Qe2 {[%clk 0:00:01]}  Qxh4 {[%clk 0:00:39]} 35. Qxa6 {[%clk 0:00:01]}  Rg5 {[%clk 0:00:31]} 36. Qb7+ {[%clk 0:00:02]}  Rg7 {[%clk 0:00:31]} 37. Rxg7+ {[%clk 0:00:01]}  Bxg7 {[%clk 0:00:32]} 38. Qf7 {[%clk 0:00:02]}  Qg5 {[%clk 0:00:14]} 39. Kb3 {[%clk 0:00:01]}  Qxe3 {[%clk 0:00:10]} 40. h4 {[%clk 0:00:01]}  Qh6 {[%clk 0:00:09]} 41. h5 {[%clk 0:00:02]}  Qf6 {[%clk 0:00:08]} 42. Qe8 {[%clk 0:00:02]}  Rb1 {[%clk 0:00:09]} 43. Kc2 {[%clk 0:00:00]}  Kh6 {[%clk 0:00:09]} 0-1


[Site "https://www.chess.com"]

[Event "Titled Tuesday Blitz July 18 Early 2023"]
[White "Rom, Jasper"]
[Black "Garcia Blanco, Omar"]
[WhiteFideId "2023733"]
[BlackFideId "2287153"]
[WhiteElo "2418"]
[BlackElo "2579"]
[Result "0-1"]
[Round "5"]
[TimeControl "180+2"]
[Date "2023.07.18"]
[WhiteClock "0:00:00"]
[BlackClock "0:00:10"]
[Board "104"]

1. e4 {[%clk 0:02:59]}  e5 {[%clk 0:03:00]} 2. Nf3 {[%clk 0:02:58]}  Nc6 {[%clk 0:03:00]} 3. Bb5 {[%clk 0:02:58]}  a6 {[%clk 0:03:01]} 4. Bxc6 {[%clk 0:02:58]}  dxc6 {[%clk 0:03:02]} 5. O-O {[%clk 0:02:59]}  Qf6 {[%clk 0:03:02]} 6. d4 {[%clk 0:02:58]}  exd4 {[%clk 0:03:03]} 7. Qxd4 {[%clk 0:02:57]}  Qxd4 {[%clk 0:03:01]} 8. Nxd4 {[%clk 0:02:58]}  Bd7 {[%clk 0:03:01]} 9. Be3 {[%clk 0:02:56]}  O-O-O {[%clk 0:03:01]} 10. Nc3 {[%clk 0:02:52]}  c5 {[%clk 0:02:49]} 11. Nb3 {[%clk 0:02:48]}  b6 {[%clk 0:02:49]} 12. Rfd1 {[%clk 0:02:44]}  Re8 {[%clk 0:02:47]} 13. Bf4 {[%clk 0:02:38]}  Ne7 {[%clk 0:02:39]} 14. f3 {[%clk 0:02:31]}  Be6 {[%clk 0:02:23]} 15. a4 {[%clk 0:02:28]}  Ng6 {[%clk 0:01:33]} 16. Bg3 {[%clk 0:02:27]}  h5 {[%clk 0:01:34]} 17. h3 {[%clk 0:02:19]}  h4 {[%clk 0:01:31]} 18. Bh2 {[%clk 0:02:19]}  Kb7 {[%clk 0:01:20]} 19. a5 {[%clk 0:02:15]}  b5 {[%clk 0:01:03]} 20. Nd5 {[%clk 0:02:06]}  Rc8 {[%clk 0:00:48]} 21. Kf1 {[%clk 0:01:46]}  Rh5 {[%clk 0:00:34]} 22. Nc3 {[%clk 0:01:25]}  Ne5 {[%clk 0:00:21]} 23. Nd2 {[%clk 0:01:13]}  Bd6 {[%clk 0:00:21]} 24. Bg1 {[%clk 0:01:11]}  Ng6 {[%clk 0:00:18]} 25. Nb3 {[%clk 0:01:05]}  Bc4+ {[%clk 0:00:17]} 26. Ke1 {[%clk 0:01:02]}  Nf4 {[%clk 0:00:18]} 27. Rd2 {[%clk 0:00:57]}  Rg5 {[%clk 0:00:18]} 28. Be3 {[%clk 0:00:52]}  Nxg2+ {[%clk 0:00:18]} 29. Kf2 {[%clk 0:00:44]}  Nxe3 {[%clk 0:00:19]} 30. Kxe3 {[%clk 0:00:45]}  Rg3 {[%clk 0:00:20]} 31. e5 {[%clk 0:00:37]}  Bxe5 {[%clk 0:00:18]} 32. Nxc5+ {[%clk 0:00:38]}  Kc6 {[%clk 0:00:16]} 33. N3e4 {[%clk 0:00:37]}  f5 {[%clk 0:00:11]} 34. Nxg3 {[%clk 0:00:34]}  hxg3 {[%clk 0:00:11]} 35. f4 {[%clk 0:00:33]}  Bxb2 {[%clk 0:00:11]} 36. Rb1 {[%clk 0:00:32]}  Bc3 {[%clk 0:00:11]} 37. Rdd1 {[%clk 0:00:31]}  Kxc5 {[%clk 0:00:11]} 38. Kf3 {[%clk 0:00:29]}  Re8 {[%clk 0:00:09]} 39. Kxg3 {[%clk 0:00:25]}  Bxa5 {[%clk 0:00:09]} 40. Rd7 {[%clk 0:00:22]}  Re3+ {[%clk 0:00:06]} 41. Kf2 {[%clk 0:00:20]}  Re2+ {[%clk 0:00:06]} 42. Kf3 {[%clk 0:00:21]}  Rh2 {[%clk 0:00:04]} 43. Kg3 {[%clk 0:00:20]}  Rxc2 {[%clk 0:00:04]} 44. Rxg7 {[%clk 0:00:20]}  Bb6 {[%clk 0:00:05]} 45. Re1 {[%clk 0:00:17]}  a5 {[%clk 0:00:05]} 46. Re5+ {[%clk 0:00:17]}  Kb4 {[%clk 0:00:05]} 47. Rxf5 {[%clk 0:00:18]}  a4 {[%clk 0:00:06]} 48. Rf8 {[%clk 0:00:07]}  a3 {[%clk 0:00:06]} 49. Ra8 {[%clk 0:00:07]}  a2 {[%clk 0:00:06]} 50. h4 {[%clk 0:00:07]}  Bd4 {[%clk 0:00:07]} 51. Rxc7 {[%clk 0:00:05]}  a1=Q {[%clk 0:00:07]} 52. Rxa1 {[%clk 0:00:05]}  Bxa1 {[%clk 0:00:08]} 53. h5 {[%clk 0:00:05]}  Rc3+ {[%clk 0:00:08]} 54. Kg4 {[%clk 0:00:05]}  Rc1 {[%clk 0:00:09]} 55. Kf5 {[%clk 0:00:04]}  Bd3+ {[%clk 0:00:09]} 56. Ke6 {[%clk 0:00:00]}  Rxc7 {[%clk 0:00:10]} 0-1


[Site "https://www.chess.com"]

[Event "Titled Tuesday Blitz July 18 Early 2023"]
[White "Bueno, Alfeu Junior Varela"]
[Black "Gontcharov, Vladislav"]
[WhiteFideId "2108879"]
[BlackFideId "4123492"]
[WhiteElo "2415"]
[BlackElo "2579"]
[Result "1/2-1/2"]
[Round "5"]
[TimeControl "180+2"]
[Date "2023.07.18"]
[WhiteClock "0:00:04"]
[BlackClock "0:00:03"]
[Board "105"]

1. e4 {[%clk 0:02:47]}  e6 {[%clk 0:02:54]} 2. d4 {[%clk 0:02:41]}  d5 {[%clk 0:02:50]} 3. Nd2 {[%clk 0:02:42]}  Be7 {[%clk 0:02:49]} 4. Bd3 {[%clk 0:02:40]}  c5 {[%clk 0:02:44]} 5. c3 {[%clk 0:02:38]}  Nc6 {[%clk 0:02:38]} 6. Ne2 {[%clk 0:02:34]}  cxd4 {[%clk 0:02:35]} 7. cxd4 {[%clk 0:02:35]}  dxe4 {[%clk 0:02:34]} 8. Nxe4 {[%clk 0:02:36]}  Nf6 {[%clk 0:02:32]} 9. O-O {[%clk 0:02:34]}  O-O {[%clk 0:02:24]} 10. N4c3 {[%clk 0:02:21]}  b6 {[%clk 0:02:15]} 11. Bg5 {[%clk 0:02:20]}  Bb7 {[%clk 0:02:14]} 12. Rc1 {[%clk 0:02:19]}  h6 {[%clk 0:01:58]} 13. Bh4 {[%clk 0:02:19]}  Nh5 {[%clk 0:01:52]} 14. Bxe7 {[%clk 0:02:07]}  Nxe7 {[%clk 0:01:51]} 15. Be4 {[%clk 0:02:00]}  Qd7 {[%clk 0:01:41]} 16. Bxb7 {[%clk 0:01:52]}  Qxb7 {[%clk 0:01:40]} 17. Nb5 {[%clk 0:01:51]}  Nd5 {[%clk 0:01:31]} 18. Nec3 {[%clk 0:01:46]}  Nhf6 {[%clk 0:01:29]} 19. Qf3 {[%clk 0:01:42]}  Rab8 {[%clk 0:01:16]} 20. Nxd5 {[%clk 0:01:27]}  Nxd5 {[%clk 0:01:05]} 21. a4 {[%clk 0:01:19]}  Rfd8 {[%clk 0:01:00]} 22. Rc4 {[%clk 0:01:06]}  a6 {[%clk 0:00:57]} 23. Nc3 {[%clk 0:00:58]}  Nxc3 {[%clk 0:00:53]} 24. Qxc3 {[%clk 0:00:47]}  Qd5 {[%clk 0:00:50]} 25. h3 {[%clk 0:00:38]}  b5 {[%clk 0:00:46]} 26. axb5 {[%clk 0:00:39]}  axb5 {[%clk 0:00:46]} 27. Rb4 {[%clk 0:00:40]}  Rbc8 {[%clk 0:00:43]} 28. Qb3 {[%clk 0:00:30]}  Qxb3 {[%clk 0:00:42]} 29. Rxb3 {[%clk 0:00:31]}  Rd5 {[%clk 0:00:42]} 30. Ra1 {[%clk 0:00:26]}  Rc4 {[%clk 0:00:31]} 31. Ra8+ {[%clk 0:00:19]}  Kh7 {[%clk 0:00:29]} 32. Rb8 {[%clk 0:00:20]}  Rdxd4 {[%clk 0:00:20]} 33. R8xb5 {[%clk 0:00:19]}  Rc1+ {[%clk 0:00:21]} 34. Kh2 {[%clk 0:00:18]}  Rf4 {[%clk 0:00:15]} 35. Kg3 {[%clk 0:00:17]}  Rf5 {[%clk 0:00:14]} 36. Rxf5 {[%clk 0:00:16]}  exf5 {[%clk 0:00:14]} 37. Rb6 {[%clk 0:00:14]}  g5 {[%clk 0:00:14]} 38. f3 {[%clk 0:00:12]}  Rc2 {[%clk 0:00:12]} 39. Kh2 {[%clk 0:00:12]}  f4 {[%clk 0:00:12]} 40. Rb5 {[%clk 0:00:10]}  Kg7 {[%clk 0:00:12]} 41. Rb6 {[%clk 0:00:10]}  f6 {[%clk 0:00:12]} 42. b4 {[%clk 0:00:10]}  Kg6 {[%clk 0:00:13]} 43. b5 {[%clk 0:00:10]}  Rb2 {[%clk 0:00:12]} 44. Rb8 {[%clk 0:00:10]}  h5 {[%clk 0:00:12]} 45. b6 {[%clk 0:00:10]}  Kf5 {[%clk 0:00:12]} 46. b7 {[%clk 0:00:10]}  Rb1 {[%clk 0:00:09]} 47. Rh8 {[%clk 0:00:05]}  Rxb7 {[%clk 0:00:09]} 48. Rxh5 {[%clk 0:00:06]}  Rb8 {[%clk 0:00:10]} 49. Rh7 {[%clk 0:00:05]}  Kg6 {[%clk 0:00:10]} 50. Rc7 {[%clk 0:00:05]}  Rb1 {[%clk 0:00:09]} 51. Rc5 {[%clk 0:00:05]}  f5 {[%clk 0:00:09]} 52. Rc6+ {[%clk 0:00:05]}  Kg7 {[%clk 0:00:10]} 53. Rc7+ {[%clk 0:00:05]}  Kg6 {[%clk 0:00:10]} 54. Rc6+ {[%clk 0:00:06]}  Kf7 {[%clk 0:00:10]} 55. Rc5 {[%clk 0:00:06]}  Ke6 {[%clk 0:00:10]} 56. Rc6+ {[%clk 0:00:06]}  Kf7 {[%clk 0:00:10]} 57. Rc7+ {[%clk 0:00:06]}  Kf6 {[%clk 0:00:10]} 58. Rc6+ {[%clk 0:00:07]}  Kg7 {[%clk 0:00:10]} 59. Rc7+ {[%clk 0:00:07]}  Kg6 {[%clk 0:00:11]} 60. Rc8 {[%clk 0:00:07]}  Re1 {[%clk 0:00:10]} 61. Rg8+ {[%clk 0:00:07]}  Kh6 {[%clk 0:00:09]} 62. Rh8+ {[%clk 0:00:06]}  Kg7 {[%clk 0:00:09]} 63. Rh5 {[%clk 0:00:05]}  Kg6 {[%clk 0:00:09]} 64. Rh8 {[%clk 0:00:05]}  Re5 {[%clk 0:00:10]} 65. Rg8+ {[%clk 0:00:05]}  Kh6 {[%clk 0:00:10]} 66. Rc8 {[%clk 0:00:05]}  Ra5 {[%clk 0:00:09]} 67. Rc6+ {[%clk 0:00:05]}  Kh5 {[%clk 0:00:09]} 68. Rc8 {[%clk 0:00:05]}  Ra2 {[%clk 0:00:08]} 69. Rh8+ {[%clk 0:00:05]}  Kg6 {[%clk 0:00:09]} 70. Rg8+ {[%clk 0:00:05]}  Kh6 {[%clk 0:00:09]} 71. Rh8+ {[%clk 0:00:05]}  Kg7 {[%clk 0:00:09]} 72. Rb8 {[%clk 0:00:05]}  Ra5 {[%clk 0:00:08]} 73. Rb7+ {[%clk 0:00:05]}  Kg6 {[%clk 0:00:07]} 74. Rb6+ {[%clk 0:00:05]}  Kh5 {[%clk 0:00:07]} 75. Rb8 {[%clk 0:00:05]}  Kg6 {[%clk 0:00:07]} 76. Rb6+ {[%clk 0:00:05]}  Kh5 {[%clk 0:00:07]} 77. Rb8 {[%clk 0:00:05]}  g4 {[%clk 0:00:06]} 78. hxg4+ {[%clk 0:00:04]}  fxg4 {[%clk 0:00:06]} 79. Rh8+ {[%clk 0:00:04]}  Kg5 {[%clk 0:00:06]} 80. Rg8+ {[%clk 0:00:04]}  Kf5 {[%clk 0:00:07]} 81. Rxg4 {[%clk 0:00:05]}  Ra8 {[%clk 0:00:06]} 82. Rh4 {[%clk 0:00:05]}  Ra1 {[%clk 0:00:06]} 83. Rh5+ {[%clk 0:00:05]}  Kg6 {[%clk 0:00:06]} 84. Rc5 {[%clk 0:00:05]}  Ra2 {[%clk 0:00:04]} 85. Kh3 {[%clk 0:00:05]}  Kf6 {[%clk 0:00:04]} 86. Rb5 {[%clk 0:00:04]}  Kg6 {[%clk 0:00:04]} 87. Rc5 {[%clk 0:00:03]}  Kf6 {[%clk 0:00:04]} 88. Rc3 {[%clk 0:00:02]}  Kg5 {[%clk 0:00:04]} 89. Rc8 {[%clk 0:00:03]}  Kf5 {[%clk 0:00:04]} 90. Rg8 {[%clk 0:00:03]}  Ra1 {[%clk 0:00:03]} 91. Kh2 {[%clk 0:00:03]}  Rb1 {[%clk 0:00:03]} 92. Rh8 {[%clk 0:00:03]}  Ra1 {[%clk 0:00:03]} 93. Rh5+ {[%clk 0:00:03]}  Kg6 {[%clk 0:00:03]} 94. Rc5 {[%clk 0:00:03]}  Ra2 {[%clk 0:00:03]} 95. Kh3 {[%clk 0:00:04]} 1/2-1/2


[Site "https://www.chess.com"]